lending/lending_fUSD_20240112
["ID","MTS","AMOUNT","RATE_DAILY","PERIOD"]
[311300569,1705049777292,151.40112,0.000225,3]
[311300570,1705049777978,151.40112,0.000225,3]
[311300571,1705049778631,151.40112,0.000225,3]
[311300572,1705049779369,151.40112,0.000225,3]
[311300573,1705049779994,151.40112,0.000225,3]
[311300574,1705049780758,122.23455401,0.000225,3]
[311300575,1705049780786,29.16656599,0.000225,3]
[311300576,1705049781508,151.40112,0.000225,3]
[311300577,1705049782196,151.40112,0.000225,3]
[311300578,1705049782903,151.40112,0.000225,3]
[311300579,1705049784367,151.40112,0.000225,3]
[311300580,1705049785167,151.40112,0.000225,3]
[311300581,1705049786456,151.40112,0.000225,3]
[311300582,1705049803618,111.70306279,0.000225,3]
[311300583,1705049803646,39.69805721,0.000225,3]
[311300584,1705049804116,712.35,0.00022304,2]
[311300585,1705049804453,151.40112,0.000225,3]
[311300586,1705049805344,145.82717157,0.000225,3]
[311300587,1705049805370,5.57394843,0.000225,3]
[311300588,1705049813383,151.40112,0.000225,3]
[311300589,1705049845859,150.0,0.00021899,2]
[311300590,1705049847159,150.0,0.00022447,2]
[311300591,1705049852045,177.40112,0.000225,3]
[311300592,1705049879462,161.18,0.00022252,2]
[311300593,1705049882569,253.72016035,0.00022252,2]
[311300594,1705049882594,883.18983965,0.00022252,2]
[311300595,1705049939670,156.33,0.00022463,2]
[311300596,1705049970653,9.75650913,0.00017802,2]
[311300597,1705049970677,165.54349087,0.00017802,2]
[311300598,1705050015220,195.09,0.00022296,2]
[311300599,1705050064362,150.0,0.00022486,2]
[311300601,1705050200826,273.86,0.00020315,2]
[311300602,1705050228934,264.78285791,0.00022213,2]
[311300603,1705050228958,66.04714209,0.00022213,2]
[311300604,1705050246160,430.12,0.00022226,2]
[311300605,1705050318413,352.02,0.00022,2]
[311300606,1705050452119,-155.33638449,0.0002256,2]
[311300609,1705050561318,201.08920669,0.00021982,2]
[311300610,1705050561344,1049.27634878,0.00021982,2]
[311300611,1705050561369,1049.27634878,0.00021982,2]
[311300612,1705050561394,886.2564821,0.00021982,2]
[311300614,1705050587319,163.01986668,0.00021978,2]
[311300615,1705050587343,963.75913105,0.00021978,2]
[311300616,1705050589993,85.51721773,0.00021928,2]
[311300617,1705050590020,78.85278227,0.00021928,2]
[311300619,1705050616549,275.86,0.00021939,2]
[311300627,1705050633781,-244.64133608,0.00022554,2]
[311300628,1705050633791,-213.58643392,0.00022555,2]
[311300633,1705050634563,-4.12877461,0.00022555,2]
[311300634,1705050634573,-306.66011724,0.00022555,2]
[311300635,1705050634586,-2591.75682868,0.00022555,2]
[311300636,1705050634596,-2221.78865575,0.00022556,2]
[311300637,1705050634607,-4209.14827953,0.00022556,2]
[311300638,1705050634617,-164.69055572,0.00022556,2]
[311300639,1705050634626,-447.63962594,0.00022564,2]
[311300640,1705050634643,-2460.35132088,0.00022564,2]
[311300641,1705050634652,-155.94,0.00022564,2]
[311300642,1705050634662,-273.86,0.00022579,2]
[311300643,1705050634671,-1070.3798,0.00022799,2]
[311300644,1705050634680,-150.0,0.00022799,2]
[311300645,1705050634689,-159.72566062,0.000228,2]
[311300646,1705050634699,-647.30063645,0.000228,2]
[311300647,1705050634708,-331.30697404,0.000228,2]
[311300648,1705050634717,-647.30063638,0.00022821,2]
[311300649,1705050634726,-159.72566061,0.00022825,2]
[311300650,1705050634735,-647.30063638,0.00022842,2]
[311300651,1705050634744,-159.72566061,0.0002285,2]
[311300652,1705050634754,-647.30063638,0.00022863,2]
[311300653,1705050634766,-159.72566061,0.00022875,2]
[311300654,1705050634775,-1391.14,0.00022875,2]
[311300655,1705050634785,-150.99,0.00022875,2]
[311300656,1705050634794,-647.30063638,0.00022885,2]
[311300657,1705050634803,-3233.34247831,0.00022896,2]
[311300658,1705050634815,-734.0161556,0.00022896,2]
[311300663,1705050638157,-1705.77073602,0.00022896,2]
[311300664,1705050638169,-1247.6648,0.00022896,2]
[311300665,1705050638246,-338.78639007,0.00022896,2]
[311300666,1705050638302,-2966.31717567,0.00022896,2]
[311300667,1705050638314,-399.13216622,0.00022896,2]
[311300668,1705050638358,-27689.17021838,0.00022896,2]
[311300714,1705050639158,323.88,0.0002235,2]
[311301024,1705050642361,-17419.19988063,0.00022896,2]
[311301059,1705050642835,-45916.68718297,0.00022896,2]
[311301062,1705050642856,-403.47012699,0.00022896,2]
[311301064,1705050642867,-264.98419918,0.00022896,2]
[311301144,1705050643561,-155.0,0.00022895,2]
[311301146,1705050643571,-9185.29152643,0.00022896,2]
[311301229,1705050646289,-940.16778604,0.00022896,2]
[311301230,1705050646398,-6155.32048981,0.00022896,2]
[311301231,1705050661806,370.68356651,0.00022,2]
[311301232,1705050661830,629.31643349,0.00022,2]
[311301233,1705050679114,419.95991529,0.00020379,2]
[311301234,1705050679138,140.03176161,0.00020379,2]
[311301235,1705050681938,563.72651413,0.00021753,2]
[311301236,1705050683172,164.25299046,0.00021753,2]
[311301237,1705050685646,181.26508258,0.00019932,2]
[311301238,1705050685669,65.20491742,0.00019932,2]
[311301239,1705050685975,246.47,0.00022196,2]
[311301240,1705050686837,380.45986741,0.00020379,2]
[311301241,1705050688122,211.58072365,0.00020608,2]
[311301242,1705050706663,145.5608403,0.00022,2]
[311301243,1705050706685,854.4391597,0.00022,2]
[311301244,1705050728532,194.83718908,0.00021803,2]
[311301245,1705050728556,461.06281092,0.00021803,2]
[311301246,1705050916750,151.86265175,0.00022,2]
[311301247,1705050935167,150.0,0.00022,2]
[311301250,1705050969086,108.77309395,0.000229,6]
[311301251,1705050972474,286.35088611,0.00022,2]
[311301252,1705050972498,1049.27634878,0.00022,2]
[311301253,1705050972521,694.37276511,0.00022,2]
[311301256,1705051053103,150.0,0.00021796,2]
[311301257,1705051054802,204.90358367,0.00022344,2]
[311301258,1705051054827,5.14524271,0.00022344,2]
[311301260,1705051078476,302.28,0.00021798,2]
[311301261,1705051114287,205.0,0.00021925,2]
[311301263,1705051155118,221.82,0.00019913,2]
[311301264,1705051155422,221.82,0.00022177,2]
[311301266,1705051161142,93.21110607,0.00021831,2]
[311301267,1705051161168,382.06889393,0.00021831,2]
[311301269,1705051245441,-150.0,0.00022596,2]
[311301270,1705051245465,-200.26860749,0.00022596,2]
[311301271,1705051245488,-6080.66832779,0.00022691,2]
[311301273,1705051509258,282.12,0.00021814,2]
[311301274,1705051628096,-200.26860749,0.00022563,2]
[311301275,1705051628116,-150.0,0.00022563,2]
[311301276,1705051628136,-332.47876393,0.00022662,2]
[311301277,1705051654246,199.63,0.00019893,2]
[311301278,1705051654565,185.45745485,0.00022157,2]
[311301279,1705051654589,14.17254515,0.00022157,2]
[311301280,1705051671195,619.77,0.00021811,2]
[311301297,1705051835693,-4150.08175186,0.00022662,2]
[311301298,1705051835703,-200.0,0.00022663,2]
[311301299,1705051835713,-211.74224814,0.00022663,2]
[311301300,1705051835724,-399.2023011,0.00022663,2]
[311301301,1705051835739,-189.05545076,0.00022663,2]
[311301302,1705051835749,-150.0,0.00022697,2]
[311301303,1705051835758,-219.46762955,0.00022698,2]
[311301304,1705051835791,-92.35668729,0.00022698,2]
[311301305,1705051835801,-173.94330505,0.00022698,2]
[311301306,1705051835811,-3678.81360574,0.00022698,2]
[311301307,1705051835821,-618.58715157,0.00022699,2]
[311301308,1705051835850,-1100.0,0.00022699,2]
[311301309,1705051835862,-576.32490571,0.00022699,2]
[311301310,1705051835874,-250.0,0.00022699,2]
[311301311,1705051836011,-1907.57048343,0.00022699,2]
[311301312,1705051836022,-600.0,0.000227,2]
[311301313,1705051836032,-616.0974,0.000227,2]
[311301314,1705051836042,-37.00485911,0.000227,2]
[311301315,1705051836054,-522.37447423,0.000227,2]
[311301316,1705051836066,-2277.7,0.000227,2]
[311301317,1705051836094,-4651.41001743,0.000227,2]
[311301319,1705051836111,-1845.0,0.000227,2]
[311301321,1705051836127,-567.0516138,0.000227,2]
[311301324,1705051836140,-2574.04524832,0.000227,2]
[311301349,1705051838337,-4526.79899782,0.000227,2]
[311301350,1705051838350,-979.31412629,0.000227,2]
[311301351,1705051838522,-528.72379125,0.000227,2]
[311301352,1705051838656,-2876.05948541,0.000227,2]
[311301353,1705051838739,-1490.23892715,0.000227,2]
[311301354,1705051838752,-1545.65765253,0.000227,2]
[311301355,1705051838800,-1704.77468899,0.000227,2]
[311301391,1705051841313,-14957.55161767,0.000227,2]
[311301392,1705051841327,-2500.0,0.000227,2]
[311301393,1705051841336,-607.75538422,0.00022702,2]
[311301394,1705051841345,-150.0,0.00022729,2]
[311301395,1705051841356,-150.0,0.00022729,2]
[311301396,1705051841366,-150.0,0.0002273,2]
[311301397,1705051841378,-150.0,0.00022741,2]
[311301398,1705051841388,-150.0,0.00022741,2]
[311301399,1705051841398,-150.0,0.00022741,2]
[311301400,1705051841407,-150.0,0.00022745,2]
[311301401,1705051841417,-300.0,0.00022746,2]
[311301402,1705051841427,-150.0,0.0002275,2]
[311301403,1705051841438,-150.0,0.0002275,2]
[311301404,1705051841449,-150.0,0.00022751,2]
[311301405,1705051841459,-150.0,0.00022752,2]
[311301406,1705051841469,-150.0,0.00022757,2]
[311301407,1705051841479,-150.0,0.00022761,2]
[311301408,1705051841490,-150.0,0.00022764,2]
[311301409,1705051841501,-150.0,0.00022765,2]
[311301410,1705051841512,-150.0,0.00022766,2]
[311301411,1705051841521,-150.0,0.00022767,2]
[311301412,1705051841532,-150.0,0.00022771,2]
[311301413,1705051841543,-150.0,0.00022771,2]
[311301414,1705051841554,-150.0,0.00022776,2]
[311301415,1705051841563,-150.0,0.00022779,2]
[311301416,1705051841574,-150.0,0.00022782,2]
[311301417,1705051841584,-150.0,0.00022784,2]
[311301418,1705051841594,-150.0,0.00022787,2]
[311301419,1705051841603,-150.0,0.00022787,2]
[311301420,1705051841614,-282.12,0.00022793,2]
[311301421,1705051841623,-300.0,0.00022793,2]
[311301422,1705051841633,-218.03,0.00022795,2]
[311301423,1705051841643,-150.0,0.00022797,2]
[311301424,1705051841652,-150.0,0.00022798,2]
[311301425,1705051841665,-845.154,0.00022798,2]
[311301426,1705051841675,-150.0,0.00022798,2]
[311301427,1705051841684,-7504.157,0.00022799,2]
[311301428,1705051841694,-13432.29615949,0.00022799,2]
[311301429,1705051841707,-2431.52483426,0.00022799,2]
[311301430,1705051841717,-150.0,0.00022799,2]
[311301431,1705051841727,-80071.28036861,0.000228,2]
[311301432,1705051841740,-228102.87499999,0.000228,2]
[311301470,1705051842160,-49505.94671478,0.000228,2]
[311301471,1705051842171,-9130.2,0.000228,2]
[311301474,1705051842207,-13334.08996621,0.000228,2]
[311301476,1705051842217,-1931.32856447,0.000228,2]
[311301478,1705051842229,-348.58281732,0.000228,2]
[311301487,1705051842307,-944.21640669,0.000228,2]
[311301491,1705051842332,-4573.6720722,0.000228,2]
[311301495,1705051842356,-390.96466,0.000228,2]
[311301624,1705051843471,-296.95776435,0.000228,2]
[311301625,1705051843482,-1060.31500001,0.000228,2]
[311301626,1705051843498,-566.62860673,0.000228,2]
[311301627,1705051843509,-377.90217753,0.000228,2]
[311301649,1705051844084,-9988.66737999,0.000228,2]
[311301650,1705051844096,-274.97730678,0.000228,2]
[311301651,1705051844109,-4708.39372862,0.000228,2]
[311301652,1705051844120,-5951.63670843,0.000228,2]
[311301653,1705051844132,-1280.49206383,0.000228,2]
[311301654,1705051844143,-22850.5,0.000228,2]
[311301655,1705051844191,-1427.10928311,0.00022799,2]
[311301656,1705051844201,-183.08008429,0.000228,2]
[311301661,1705051846428,-1652.23369807,0.000228,2]
[311301662,1705051846554,-421.6775717,0.000228,2]
[311301663,1705051846586,-1445.347011,0.000228,2]
[311301664,1705051846682,-69958.80554706,0.000228,2]
[311301665,1705051846692,-387504.4989624,0.000228,2]
[311301666,1705051846704,-30368.65862832,0.000228,2]
[311301668,1705051853467,415.33380363,0.00021887,2]
[311301669,1705051853491,1049.27634878,0.00021887,2]
[311301670,1705051853520,1049.27634878,0.00021887,2]
[311301671,1705051853543,601.48371788,0.00021887,2]
[311301675,1705051959387,290.34,0.00021791,2]
[311301676,1705051967207,157.4526309,0.00021952,2]
[311301677,1705051967231,10.9773691,0.00021952,2]
[311301678,1705051967449,168.43,0.00022333,2]
[311301679,1705052073328,869.86897968,0.00022491,2]
[311301680,1705052073351,192.0007936,0.00022491,2]
[311301681,1705052079567,158.59,0.00021987,2]
[311301682,1705052084629,417.6160908,0.00021986,2]
[311301683,1705052122324,153.17,0.0002175,2]
[311301684,1705052122374,127.89946438,0.00021895,2]
[311301685,1705052122402,25.27053562,0.00021895,2]
[311301686,1705052122456,153.17,0.0002204,2]
[311301687,1705052122651,153.17,0.00022185,2]
[311301688,1705052122870,153.17,0.0002233,2]
[311301689,1705052123099,153.17,0.00022475,2]
[311301690,1705052153384,3988.74204382,0.00020517,5]
[311301691,1705052169358,504.18,0.00021755,2]
[311301692,1705052190295,217.71520853,0.00022499,2]
[311301693,1705052191342,16746.77665301,0.00022499,2]
[311301694,1705052197368,363.64755917,0.00022499,2]
[311301695,1705052202770,160.46586719,0.00022499,2]
[311301696,1705052209227,7774.2456972,0.00022499,2]
[311301697,1705052213223,248.46308844,0.00022499,2]
[311301698,1705052213523,250.02290447,0.00022499,2]
[311301699,1705052222460,311.82431684,0.00022499,2]
[311301700,1705052223652,265.185965,0.00022499,2]
[311301701,1705052262953,206.34,0.00019847,2]
[311301702,1705052263284,206.34,0.00022111,2]
[311301703,1705052273131,10000.0,0.00021918,2]
[311301704,1705052284256,248.46308844,0.00022499,2]
[311301705,1705052296002,220.04831573,0.00022499,2]
[311301706,1705052301867,16746.77665301,0.00022499,2]
[311301707,1705052306886,376.44759867,0.00022499,2]
[311301708,1705052335656,363.64755917,0.00022499,2]
[311301709,1705052347613,155.0,0.00022499,2]
[311301710,1705052350319,2304.07734728,0.00022499,2]
[311301711,1705052408218,2943.97850092,0.00022499,2]
[311301712,1705052408254,196.7064931,0.00022499,2]
[311301713,1705052409325,473.8673768,0.00022499,2]
[311301714,1705052409628,155.0,0.00022499,2]
[311301715,1705052409755,161.5917949,0.00022499,2]
[311301716,1705052412305,2617.16595295,0.00022499,2]
[311301717,1705052413852,5000.0,0.000224,14]
[311301718,1705052413883,44906.3714,0.000224,14]
[311301719,1705052418266,270.50240422,0.00022499,2]
[311301720,1705052421782,309.79583088,0.00022499,2]
[311301721,1705052422725,7774.2456972,0.00022499,2]
[311301722,1705052425106,300.93559721,0.00022499,2]
[311301723,1705052425808,202.44330084,0.00022499,2]
[311301724,1705052428901,2142.99004246,0.00022499,2]
[311301725,1705052433512,155.0,0.00022499,2]
[311301726,1705052436656,24317.54610841,0.00022499,2]
[311301727,1705052437751,248.46308844,0.00022498,2]
[311301728,1705052438788,168.61,0.00021923,2]
[311301729,1705052439003,168.61,0.00022208,2]
[311301730,1705052439225,168.61,0.00022494,2]
[311301731,1705052440655,155.0,0.00022498,2]
[311301732,1705052443377,11667.66899712,0.00022498,2]
[311301733,1705052450182,244.64133608,0.00022499,2]
[311301734,1705052451127,270.98,0.00021764,2]
[311301735,1705052453272,2898.41694592,0.00022499,2]
[311301736,1705052453524,161.58755497,0.00022499,2]
[311301737,1705052461944,215.30779776,0.00022499,2]
[311301738,1705052463081,285.07168855,0.00022499,2]
[311301739,1705052467089,650.93242009,0.00022499,2]
[311301740,1705052471967,403.85382049,0.00022499,2]
[311301741,1705052474779,472.70124021,0.00022499,2]
[311301742,1705052477350,915.41469946,0.00022499,2]
[311301743,1705052487068,400.0,0.00022499,2]
[311301744,1705052487990,386.53762894,0.00022499,2]
[311301745,1705052488776,270.50240422,0.00022499,2]
[311301746,1705052494618,155.0,0.00022499,2]
[311301747,1705052509517,155.0,0.00022499,2]
[311301748,1705052514867,24317.54610841,0.00022499,2]
[311301749,1705052521968,300.0,0.00022499,2]
[311301750,1705052522687,150.0,0.00022499,2]
[311301751,1705052543144,154.86,0.00021761,2]
[311301752,1705052553913,205.0,0.00021732,2]
[311301753,1705052565158,400.0,0.00022499,2]
[311301754,1705052572502,386.53762894,0.00022499,2]
[311301755,1705052589504,24317.54610841,0.00022499,2]
[311301756,1705052630865,596.65,0.00021761,2]
[311301757,1705052701969,10000.0,0.00021918,2]
[311301758,1705052702323,150.0,0.00022499,2]
[311301759,1705052726228,363.64755917,0.00022499,2]
[311301760,1705052739009,185.7,0.00019812,2]
[311301761,1705052739326,185.7,0.00022076,2]
[311301762,1705052748964,5272.44162638,0.00022499,2]
[311301763,1705052789800,13222.05175332,0.00022499,2]
[311301764,1705052838085,-2244.71260276,0.000225,2]
[311301765,1705052882281,150.0,0.00022499,2]
[311301766,1705052882367,150.0,0.00022499,2]
[311301767,1705052883145,168.05,0.00021894,2]
[311301768,1705052883241,168.05,0.0002218,2]
[311301769,1705052883452,168.05,0.00022465,2]
[311301770,1705052910442,270.18,0.00021729,2]
[311301773,1705052968355,158.21969101,0.000224,2]
[311301774,1705052979207,246.39576141,0.00022499,2]
[311301775,1705052985536,279.00084549,0.00022499,2]
[311301776,1705052987505,5272.44162638,0.00022499,2]
[311301779,1705052991551,581.20878146,0.00022499,2]
[311301780,1705052994771,155.0,0.00022499,2]
[311301781,1705052994827,698.47028769,0.00022499,2]
[311301782,1705052997743,300.93559721,0.00022499,2]
[311301783,1705053001256,4482.56051579,0.00022499,2]
[311301784,1705053004248,265.185965,0.00022499,2]
[311301785,1705053012610,220.04831573,0.00022499,2]
[311301786,1705053013103,10513.08241403,0.00022499,2]
[311301787,1705053017272,1888.06243048,0.00022498,2]
[311301788,1705053018407,383.76405384,0.00022498,2]
[311301789,1705053020831,248.46308844,0.00022499,2]
[311301790,1705053025695,37073.4761263,0.00022499,2]
[311301800,1705053034249,-3421.88058374,0.000225,2]
[311301801,1705053034262,-465.07867737,0.000225,2]
[311301802,1705053034286,-448.87925568,0.000225,2]
[311301803,1705053034312,-917.62,0.000225,2]
[311301804,1705053034323,-6169.76253763,0.000225,2]
[311301805,1705053034372,-849.08324174,0.000225,2]
[311301806,1705053034432,-886.10191071,0.000225,2]
[311301807,1705053034554,-1003.29,0.000225,2]
[311301808,1705053034566,-2586.20165624,0.000225,2]
[311301809,1705053034576,-363.66366697,0.000225,2]
[311301810,1705053034585,-26964.92489314,0.00022501,2]
[311301811,1705053034595,-158.59,0.00022504,2]
[311301812,1705053034605,-496.05079956,0.0002257,2]
[311301813,1705053034614,-9047.60211503,0.000226,2]
[311301814,1705053034631,-2353.32733283,0.000226,2]
[311301818,1705053036544,155.0,0.00022499,2]
[311301836,1705053037545,-1944.73565214,0.000226,2]
[311301838,1705053037555,-3002.8893,0.000226,2]
[311301839,1705053037565,-153.17,0.0002262,2]
[311301840,1705053037575,-150.0,0.00022623,2]
[311301841,1705053037588,-150.0,0.00022637,2]
[311301842,1705053037599,-3558.64,0.00022637,2]
[311301843,1705053037610,-150.0,0.00022643,2]
[311301844,1705053037621,-2187.57,0.00022643,2]
[311301845,1705053037630,-1420.45,0.00022643,2]
[311301846,1705053037639,-1069.26,0.00022643,2]
[311301847,1705053037649,-150.0,0.00022648,2]
[311301848,1705053037660,-276.32877753,0.00022654,2]
[311301849,1705053037669,-150.0,0.00022655,2]
[311301850,1705053037679,-150.0,0.0002266,2]
[311301851,1705053037688,-150.0,0.00022662,2]
[311301852,1705053037698,-150.0,0.00022665,2]
[311301853,1705053037708,-150.0,0.00022671,2]
[311301854,1705053037721,-150.0,0.00022674,2]
[311301855,1705053037730,-150.0,0.00022675,2]
[311301856,1705053037739,-150.0,0.00022677,2]
[311301857,1705053037750,-150.0,0.00022686,2]
[311301858,1705053037760,-150.0,0.00022686,2]
[311301859,1705053037770,-150.0,0.00022688,2]
[311301860,1705053037781,-1000.0,0.0002269,2]
[311301861,1705053037791,-150.0,0.00022691,2]
[311301862,1705053037802,-407.97817033,0.00022695,2]
[311301863,1705053037816,-592.02182967,0.00022695,2]
[311301864,1705053037826,-500.0,0.00022695,2]
[311301865,1705053037836,-150.0,0.00022696,2]
[311301866,1705053037846,-1500.0,0.00022696,2]
[311301867,1705053037856,-351.08560145,0.00022698,2]
[311301868,1705053037865,-150.99,0.00022699,2]
[311301869,1705053037876,-499.99,0.00022699,2]
[311301870,1705053037886,-2382.29924966,0.00022699,2]
[311301871,1705053037897,-171.90790212,0.00022699,2]
[311301872,1705053037908,-1369.16523274,0.00022699,2]
[311301873,1705053037921,-168.76884931,0.00022699,2]
[311301874,1705053037931,-6574.21473305,0.000227,2]
[311301875,1705053037960,-399.37201755,0.000227,2]
[311301876,1705053037974,-760.4408494,0.000227,2]
[311301877,1705053037985,-240.90131076,0.000227,2]
[311301878,1705053038015,-3466.66028671,0.000227,2]
[311301886,1705053038077,-18371.34966106,0.000227,2]
[311301888,1705053038089,-11061.18704147,0.000227,2]
[311301890,1705053038099,-5000.0,0.000227,2]
[311301892,1705053038109,-1810.65018936,0.000227,2]
[311301894,1705053038119,-172.15181506,0.000227,2]
[311301896,1705053038129,-158.21969101,0.000227,2]
[311301898,1705053038138,-799.79330025,0.000227,2]
[311301900,1705053038148,-28693.99,0.000227,2]
[311301902,1705053038157,-1032.14042625,0.000227,2]
[311301904,1705053038167,-300.0,0.00022702,2]
[311301907,1705053038177,-270.18,0.00022707,2]
[311301909,1705053038186,-150.0,0.00022711,2]
[311301910,1705053038195,-200.0,0.00022717,2]
[311301912,1705053038206,-800.0,0.00022717,2]
[311301915,1705053038217,-2382.29924963,0.00022717,2]
[311301917,1705053038228,-150.0,0.00022723,2]
[311301919,1705053038238,-150.0,0.00022724,2]
[311301920,1705053038249,-150.0,0.00022726,2]
[311301921,1705053038258,-216.85197979,0.00022732,2]
[311301922,1705053038267,-2382.29924963,0.00022736,2]
[311301923,1705053038277,-196.00671209,0.00022738,2]
[311301924,1705053038286,-150.0,0.00022738,2]
[311301925,1705053038297,-300.0,0.00022745,2]
[311301926,1705053038306,-168.05,0.0002275,2]
[311301927,1705053038316,-150.0,0.0002275,2]
[311301928,1705053038326,-2382.29924963,0.00022754,2]
[311301930,1705053038336,-150.0,0.00022763,2]
[311301932,1705053038346,-150.0,0.00022763,2]
[311301934,1705053038355,-153.17,0.00022765,2]
[311301936,1705053038364,-150.0,0.00022766,2]
[311301938,1705053038374,-150.0,0.00022768,2]
[311301940,1705053038383,-150.0,0.00022771,2]
[311301942,1705053038392,-2382.29924963,0.00022772,2]
[311301944,1705053038402,-214.2123118,0.00022772,2]
[311301946,1705053038411,-150.0,0.00022776,2]
[311301948,1705053038421,-150.0,0.0002278,2]
[311301950,1705053038430,-1067.26832827,0.00022785,2]
[311301952,1705053038440,-151.18818117,0.00022788,2]
[311301954,1705053038449,-150.0,0.00022788,2]
[311301956,1705053038459,-158.26701066,0.00022789,2]
[311301958,1705053038468,-158.26701066,0.0002279,2]
[311301960,1705053038480,-158.26701066,0.0002279,2]
[311301963,1705053038489,-2382.29924963,0.0002279,2]
[311301965,1705053038499,-174.90637213,0.00022793,2]
[311301967,1705053038509,-1802.0,0.00022795,2]
[311301969,1705053038518,-199.8467932,0.00022795,2]
[311301971,1705053038527,-155.24545964,0.00022795,2]
[311301973,1705053038537,-278.70241203,0.00022795,2]
[311301975,1705053038547,-2097.87975962,0.00022795,2]
[311301977,1705053038557,-203.19794191,0.00022795,2]
[311301979,1705053038566,-178.02448792,0.00022795,2]
[311301981,1705053038576,-4696.4400105,0.00022795,2]
[311301983,1705053038586,-186.93360633,0.00022795,2]
[311301985,1705053038596,-157.91783663,0.00022795,2]
[311301987,1705053038606,-5519.65231925,0.00022795,2]
[311301990,1705053038626,-244.82389858,0.00022795,2]
[311301993,1705053038636,-162.35753185,0.00022795,2]
[311301995,1705053038647,-2905.1265303,0.00022795,2]
[311301997,1705053038657,-285.16719726,0.00022795,2]
[311301999,1705053038666,-403.67230355,0.00022795,2]
[311302001,1705053038676,-650.63857699,0.00022795,2]
[311302003,1705053038686,-472.39818612,0.00022795,2]
[311302005,1705053038695,-258.03530166,0.00022795,2]
[311302007,1705053038705,-271.46543977,0.00022795,2]
[311302009,1705053038715,-156.27401366,0.00022795,2]
[311302011,1705053038727,-225.24224803,0.00022795,2]
[311302013,1705053038737,-400.0,0.00022795,2]
[311302015,1705053038747,-473.57815491,0.00022795,2]
[311302018,1705053038758,-173.09804103,0.00022795,2]
[311302020,1705053038767,-4624.68367718,0.00022795,2]
[311302022,1705053038777,-4267.19887316,0.00022795,2]
[311302024,1705053038787,-2140.09985835,0.00022795,2]
[311302026,1705053038797,-207.51207034,0.00022795,2]
[311302028,1705053038806,-445.4206063,0.00022795,2]
[311302030,1705053038816,-155.83144629,0.00022795,2]
[311302032,1705053038825,-1087.68105932,0.00022795,2]
[311302034,1705053038835,-2785.98594041,0.00022795,2]
[311302036,1705053038845,-336.93860005,0.00022795,2]
[311302038,1705053038855,-2974.74030876,0.00022795,2]
[311302040,1705053038865,-227.41621387,0.00022795,2]
[311302042,1705053038874,-155.46614533,0.00022795,2]
[311302044,1705053038884,-265.34853388,0.00022795,2]
[311302046,1705053038894,-155.33556615,0.00022795,2]
[311302049,1705053038903,-876.90733852,0.00022795,2]
[311302051,1705053038913,-159.23586212,0.00022795,2]
[311302053,1705053038923,-346.14918287,0.00022795,2]
[311302055,1705053038950,-460.22942243,0.00022795,2]
[311302057,1705053038961,-600.91466307,0.00022795,2]
[311302059,1705053038972,-155.0,0.00022795,2]
[311302061,1705053038982,-226.38117621,0.00022795,2]
[311302063,1705053038991,-682.25811455,0.00022795,2]
[311302065,1705053039000,-3855.00674069,0.00022795,2]
[311302067,1705053039011,-760.80774365,0.00022795,2]
[311302069,1705053039021,-155.0,0.00022795,2]
[311302071,1705053039031,-429.50961757,0.00022795,2]
[311302073,1705053039041,-4311.05531194,0.00022795,2]
[311302075,1705053039051,-265.35685706,0.00022795,2]